bitfinex-derivatives/quotes_ETHF0:USTF0_20241229
["timestamp","ask_amount","ask_price","bid_price","bid_amount"]
[1735454669745,0.4413,3392.1,3391.7,8.88134475]
[1735454669947,0.4437,3391.8,3391.7,9.17668475]
[1735454671353,0.4437,3391.8,3391.7,4.54724044]
[1735454672451,0.4437,3391.8,3391.7,3.50314]
[1735454672857,0.4437,3391.8,3391.7,0.29534]
[1735454673354,0.73662,3392.1,3391.9,0.29533]
[1735454673944,0.4413,3392.1,3391.8,2.37781641]
[1735454674148,0.4413,3392.1,3392.0,0.29532]
[1735454675545,3.2078,3392.4,3392.3,0.2953]
[1735454675751,3.6711,3392.4,3392.3,0.2953]
[1735454676151,0.4633,3392.4,3392.3,0.2953]
[1735454679462,0.75859,3392.4,3392.3,0.2953]
[1735454679761,0.4633,3392.4,3392.2,0.8848]
[1735454679960,0.2953,3392.3,3392.2,1.1801]
[1735454684460,0.4633,3392.4,3391.8,3.2078]
[1735454684768,0.29533,3392.0,3391.9,0.29533]
[1735454689871,0.29533,3391.9,3391.8,0.74804]
[1735454690064,0.73113,3391.9,3391.8,0.74804]
[1735454692669,0.29533,3392.0,3391.9,0.29533]
[1735454694075,0.29533,3391.9,3391.8,0.74804]
[1735454694274,0.73713,3391.9,3391.8,0.74804]
[1735454695176,0.73713,3391.9,3391.8,0.29534]
[1735454695377,0.29534,3391.8,3391.7,1.34054005]
[1735454695579,0.74224,3391.8,3391.7,1.34054005]
[1735454697582,0.4469,3391.8,3391.7,1.34054005]
[1735454700281,0.74224,3391.8,3391.7,0.29534]
[1735454700487,0.29538,3391.4,3391.3,0.29538]
[1735454700877,0.29537,3391.5,3391.4,0.29537]
[1735454701083,0.29536,3391.6,3391.5,0.29536]
[1735454701384,0.29536,3391.6,3391.5,1.34056005]
[1735454707989,3.48404634,3391.7,3391.6,0.29536]
[1735454708186,3.48404634,3391.7,3391.6,0.72976]
[1735454708382,3.48404634,3391.7,3391.6,1.59906]
[1735454709286,3.77938634,3391.8,3391.6,1.3037]
[1735454709487,3.77938634,3391.8,3391.7,1.34055005]
[1735454709685,3.48404634,3391.8,3391.7,1.34055005]
[1735454710589,0.29533,3391.9,3391.8,0.29534]
[1735454711091,6.98717634,3392.0,3391.9,0.29533]
[1735454711293,6.98717634,3392.0,3391.9,1.34053005]
[1735454711590,6.69184634,3392.0,3391.9,1.34053005]
[1735454712190,3.2078,3392.0,3391.9,1.34053005]
[1735454714982,3.2078,3392.0,3391.9,0.29533]
[1735454715188,0.29534,3391.8,3391.7,5.67464436]
[1735454716283,0.29534,3391.8,3391.7,5.96999436]
[1735454716484,1.3587,3391.9,3391.8,0.29534]
[1735454716696,1.3587,3391.9,3391.8,1.18764]
[1735454716697,0.73263,3391.9,3391.8,1.18764]
[1735454716993,0.73263,3391.9,3391.8,1.63754]
[1735454717183,0.4373,3391.9,3391.8,1.63754]
[1735454717790,9.01517063,3392.0,3391.9,0.29533]
[1735454717990,4.64353706,3392.1,3392.0,0.29532]
[1735454718192,4.64353706,3392.1,3392.0,1.34052005]
[1735454719398,3.48223519,3392.1,3392.0,1.04520005]
[1735454719697,3.48223519,3392.1,3392.0,1.34052005]
[1735454720293,3.48223519,3392.1,3392.0,0.29532]
[1735454720893,3.48223519,3392.1,3391.8,11.556683]
[1735454720894,4.22844519,3392.2,3392.1,0.29531]
[1735454721492,3.93313519,3392.2,3392.1,2.67254869]
[1735454721888,3.48223519,3392.2,3392.1,2.67254869]
[1735454722093,3.77753519,3392.2,3392.1,2.67254869]
[1735454722603,0.2953,3392.2,3392.1,2.67254869]
[1735454725099,3.77753519,3392.2,3392.1,2.67254869]
[1735454725799,3.48223519,3392.2,3392.1,2.67254869]
[1735454726899,3.77753519,3392.3,3392.2,0.2953]
[1735454727303,3.77753519,3392.3,3392.2,0.7229]
[1735454728498,3.48223519,3392.3,3392.2,0.7229]
[1735454728701,3.48223519,3392.3,3392.2,3.9307]
[1735454729707,0.29529,3392.4,3392.3,0.2953]
[1735454733403,0.4644,3392.5,3392.2,3.6354]
[1735454733707,0.75968,3392.5,3392.4,0.29529]
[1735454736903,0.4644,3392.5,3392.4,0.29529]
[1735454737609,0.75968,3392.5,3392.4,0.29529]
[1735454738404,0.4644,3392.5,3392.4,0.29529]
[1735454740406,0.4644,3392.5,3392.4,2.67252869]
[1735454742300,0.4644,3392.5,3392.4,1.33988613]
[1735454747211,0.4644,3392.5,3392.4,0.29529]
[1735454747405,0.4644,3392.5,3392.4,1.33988613]
[1735454761623,3.48223519,3392.8,3392.7,0.29526]
[1735454761821,3.48223519,3392.8,3392.7,1.33985613]
[1735454762618,3.90593519,3392.9,3392.8,0.29525]
[1735454762818,3.90593519,3392.9,3392.8,0.75575]
[1735454763014,3.90593519,3392.9,3392.8,1.19075]
[1735454763324,3.90593519,3392.9,3392.8,4.39855]
[1735454763817,3.90593519,3392.9,3392.8,1.19075]
[1735454767616,3.90593519,3392.9,3392.8,0.29525]
[1735454767922,3.90593519,3392.9,3392.8,1.33984613]
[1735454773122,4.20117519,3392.9,3392.8,1.33984613]
[1735454773726,3.90593519,3392.9,3392.8,1.33984613]
[1735454774922,5.06723706,3392.9,3392.8,1.33984613]
[1735454775320,0.29526,3392.7,3392.6,4.92470431]
[1735454775523,0.29526,3392.7,3392.6,5.67404044]
[1735454776028,0.29526,3392.7,3392.6,5.96931044]
[1735454776417,0.29526,3392.7,3392.6,1.33986613]
[1735454777222,0.29527,3392.6,3392.5,3.2078]
[1735454777524,0.29527,3392.6,3392.5,4.25239613]
[1735454777718,0.29527,3392.6,3392.5,1.04459613]
[1735454778618,4.93880706,3392.6,3392.5,1.04459613]
[1735454779426,4.93880706,3392.6,3392.5,1.33987613]
[1735454780123,0.29527,3392.6,3392.5,1.33987613]
[1735454780718,4.64353706,3392.7,3392.5,1.04459613]
[1735454780918,4.93880706,3392.7,3392.6,0.29527]
[1735454781925,4.64353706,3392.7,3392.6,0.29527]
[1735454782316,4.64353706,3392.7,3392.6,0.73247]
[1735454782723,4.64353706,3392.7,3392.6,1.17127]
[1735454783428,3.48458318,3392.8,3392.7,0.29526]
[1735454783728,3.48458318,3392.8,3392.7,1.33985613]
[1735454784927,3.48458318,3392.8,3392.7,5.97021836]
[1735454786032,3.90828318,3392.9,3392.7,6.73903042]
[1735454786329,3.90828318,3392.9,3392.8,0.29525]
[1735454788035,3.90828318,3392.9,3392.8,4.92588786]
[1735454790035,3.48458318,3392.9,3392.8,5.37978786]
[1735454791335,3.48458318,3393.0,3392.9,0.29524]
[1735454791530,3.48458318,3393.0,3392.9,1.33983613]
[1735454792930,3.48458318,3393.0,3392.9,5.97047399]
[1735454794028,3.48458318,3393.0,3392.9,1.33983613]
[1735454795641,3.93758318,3393.0,3392.9,1.33983613]
[1735454796438,4.23282318,3393.0,3392.9,0.29524]
[1735454797043,3.93758318,3393.0,3392.9,0.29524]
[1735454797541,4.23282318,3393.0,3392.9,0.29524]
[1735454797740,0.8762,3393.0,3392.9,0.29524]
[1735454805851,0.453,3393.0,3392.9,0.29524]
[1735454806348,0.453,3393.0,3392.9,0.74454]
[1735454806550,3.9370676,3393.0,3392.9,0.74454]
[1735454809250,3.9370676,3393.0,3392.9,5.37517786]
[1735454810947,3.4840676,3393.0,3392.9,5.37517786]
[1735454811749,3.4840676,3393.0,3392.9,0.74454]
[1735454813354,3.4840676,3393.0,3392.9,4.92587786]
[1735454814657,4.64353706,3393.1,3393.0,0.29524]
[1735454816752,4.64353706,3393.1,3392.8,8.88303399]
[1735454816753,5.07153706,3393.2,3393.1,0.29523]
[1735454818255,5.07153706,3393.2,3392.8,8.88303399]
[1735454818758,5.36675706,3393.2,3393.1,0.29523]
[1735454819360,0.72322,3393.2,3393.1,0.29523]
[1735454820864,5.36817767,3393.2,3393.1,0.29523]
[1735454822862,5.07295767,3393.2,3393.1,0.29523]
[1735454824368,0.428,3393.2,3393.1,0.29523]
[1735454825164,0.428,3393.2,3392.8,5.67523399]
[1735454825461,0.72322,3393.2,3393.1,0.29523]
[1735454826866,6.53059063,3393.2,3393.1,0.29523]
[1735454829356,0.72322,3393.2,3393.1,0.29523]
[1735454831967,6.53538694,3393.2,3393.1,0.29523]
[1735454833264,0.72322,3393.2,3393.1,0.29523]
[1735454839874,0.29524,3393.0,3392.9,4.63063786]
[1735454840876,1.33983613,3393.0,3392.9,4.63063786]
[1735454841368,1.33983613,3393.0,3392.9,0.40823786]
[1735454841369,10.59223226,3393.0,3392.9,0.40823786]
[1735454841573,0.29525,3392.8,3392.7,6.94416647]
[1735454841875,1.33984613,3392.8,3392.7,6.94416647]
[1735454842579,6.33984613,3392.8,3392.7,6.94416647]
[1735454842780,6.33984613,3392.8,3392.0,3.2078]
[1735454842781,0.73816,3392.7,3392.0,3.2078]
[1735454843075,1.33990613,3392.1,3392.0,3.2078]
[1735454845283,0.29531,3392.1,3392.0,3.2078]
[1735454846583,1.33990613,3392.1,3392.0,3.2078]
[1735454847690,0.29532,3392.0,3391.9,0.429]
[1735454849488,3.77097123,3392.0,3391.9,0.429]
[1735454851485,3.47565123,3392.0,3391.9,1.76892613]
[1735454851695,3.47565123,3392.1,3392.0,0.29532]
[1735454851986,3.77096123,3392.1,3392.0,0.29532]
[1735454852584,3.47565123,3392.1,3392.0,0.29532]
[1735454852885,0.29531,3392.2,3392.1,0.29531]
[1735454853085,0.29531,3392.2,3392.1,1.33990613]
[1735454856283,3.2078,3392.5,3392.1,1.04459613]
[1735454856485,3.2078,3392.5,3392.4,1.33988613]
[1735454856681,3.50308,3392.5,3392.4,1.33988613]
[1735454856984,3.2078,3392.5,3392.4,1.33988613]
[1735454857293,3.50308,3392.5,3392.4,1.33988613]
[1735454859492,3.2078,3392.5,3392.4,1.33988613]
[1735454859689,0.29527,3392.6,3392.5,0.29528]
[1735454859991,0.29527,3392.6,3392.5,0.71938]
[1735454860586,0.29527,3392.7,3392.6,0.29526]
[1735454860795,3.77091123,3392.8,3392.7,0.29526]
[1735454861089,2.77485123,3392.8,3392.7,0.75336]
[1735454861684,0.29525,3392.9,3392.8,0.29525]
[1735454862894,3.2078,3393.0,3392.7,0.75336]
[1735454862895,0.29525,3392.8,3392.7,0.75336]
[1735454866489,0.29525,3392.8,3392.7,0.4581]
[1735454866994,0.29525,3392.8,3392.7,0.75336]
[1735454869697,0.29525,3392.9,3392.8,0.29525]
[1735454873601,7.84631986,3393.2,3392.7,0.4581]
[1735454873791,7.84631986,3393.2,3393.1,0.29523]
[1735454873792,8.14153986,3393.2,3393.1,0.29523]
[1735454874994,3.50302,3393.2,3393.1,0.29523]
[1735454875704,4.54761613,3393.2,3393.1,0.29523]
[1735454876904,3.50302,3393.2,3393.1,0.29523]
[1735454879202,3.2078,3393.2,3393.1,0.29523]
[1735454879407,3.50302,3393.2,3393.1,0.29523]
[1735454879801,3.50302,3393.2,3393.1,0.75893]
[1735454891111,0.29522,3393.2,3393.1,0.75893]
[1735454898324,1.04459613,3393.2,3392.7,3.6659]
[1735454898516,0.29525,3392.8,3392.7,3.96116]
[1735454899113,0.29525,3392.9,3392.7,3.6659]
[1735454899420,0.29523,3393.1,3393.0,0.29524]
[1735454900016,0.29523,3393.1,3393.0,0.75224]
[1735454902721,4.93374986,3393.1,3393.0,0.75224]
[1735454903121,4.63851986,3393.1,3393.0,0.75224]
[1735454903324,4.63851986,3393.1,3393.0,1.79683613]
[1735454904023,3.93791986,3393.1,3393.0,1.79683613]
[1735454904222,2.51791986,3393.2,3393.1,0.29523]
[1735454904525,2.51791986,3393.2,3393.1,1.33982613]
[1735454905028,2.51791986,3393.2,3393.1,4.54762613]
[1735454905927,6.0987104,3393.7,3393.6,0.29518]
[1735454907527,6.0987004,3393.8,3393.7,0.29517]
[1735454907729,6.0987004,3393.8,3393.7,0.73097]
[1735454909027,0.29517,3393.8,3393.7,0.73097]
[1735454916940,0.29515,3394.0,3393.9,0.29515]
[1735454919141,1.04459613,3394.1,3393.7,0.4358]
[1735454919339,0.29517,3393.8,3393.7,0.73097]
[1735454922243,3.77330258,3393.8,3393.7,0.73097]
[1735454924447,3.77330258,3393.8,3393.7,0.4358]
[1735454925642,3.47813258,3393.8,3393.5,0.4346]
[1735454925845,0.29518,3393.6,3393.5,0.72979]
[1735454928055,3.77331258,3393.6,3393.5,0.72979]
[1735454928240,3.77331258,3393.6,3393.5,0.4346]
[1735454928444,3.77331258,3393.6,3393.5,0.72979]
[1735454929442,3.47813258,3393.6,3393.5,0.72979]
[1735454930551,3.47813258,3393.7,3393.6,0.29518]
[1735454930744,3.47813258,3393.7,3393.6,1.33977613]
[1735454931451,3.77330258,3393.7,3393.6,0.29518]
[1735454931854,3.47813258,3393.7,3393.6,1.33977613]
[1735454932256,3.47813258,3393.8,3393.7,0.29517]
[1735454932552,3.47813258,3393.8,3393.7,0.71727]
[1735454933554,3.47813258,3393.9,3393.8,0.29517]
[1735454933949,3.77329258,3393.9,3393.8,0.29517]
[1735454935961,0.29517,3393.8,3393.7,0.71727]
[1735454936255,3.47813258,3393.9,3393.8,0.29517]
[1735454936256,3.77330258,3393.9,3393.8,0.29517]
[1735454937150,3.77330258,3393.9,3393.7,0.4221]
[1735454937151,3.47813258,3393.9,3393.7,0.4221]
[1735454937351,0.29517,3393.8,3393.7,0.71727]
[1735454938655,3.47813258,3393.9,3393.5,0.4346]
[1735454938857,0.29518,3393.6,3393.5,0.4346]
[1735454939761,0.29518,3393.6,3393.5,0.72979]
[1735454940259,3.77331258,3393.6,3393.5,0.72979]
[1735454942261,3.47813258,3393.6,3393.5,1.77438613]
[1735454943761,3.47813258,3393.6,3393.5,0.72979]
[1735454944467,3.47813258,3393.8,3393.7,0.29517]
[1735454945467,4.9323367,3393.9,3393.7,0.29517]
[1735454945666,4.9323367,3393.9,3393.8,0.4568]
[1735454945862,4.9323367,3393.9,3393.8,0.8815]
[1735454947161,0.29518,3393.6,3393.5,0.72979]
[1735454947364,0.29518,3393.6,3393.5,1.3296]
[1735454948262,0.29518,3393.6,3393.5,1.62479]
[1735454950269,0.29518,3393.6,3393.5,1.3296]
[1735454950662,0.29518,3393.6,3393.5,1.62479]
[1735454951771,0.29518,3393.6,3393.5,1.3296]
[1735454951966,4.9323567,3393.6,3393.5,1.3296]
[1735454953263,4.9323567,3393.6,3393.5,1.62479]
[1735454954064,4.9323567,3393.6,3393.5,1.3296]
[1735454954267,4.9323567,3393.6,3393.5,1.62479]
[1735454954773,4.9323567,3393.6,3393.5,1.3296]
[1735454955261,0.29518,3393.6,3393.5,1.3296]
[1735454955863,0.29518,3393.6,3393.5,1.62479]
[1735454956769,6.0987104,3393.6,3393.5,1.62479]
[1735454958270,0.29518,3393.6,3393.5,1.62479]
[1735454961074,4.9411954,3393.6,3393.5,1.62479]
[1735454961877,4.6460154,3393.6,3393.5,1.62479]
[1735454962171,4.6460154,3393.6,3393.5,4.83259]
[1735454962373,6.0987104,3393.7,3393.6,0.29518]
[1735454963872,0.29518,3393.7,3393.6,0.29518]
[1735454964876,4.94089831,3393.7,3393.6,0.29518]
[1735454967978,0.29518,3393.6,3393.5,5.95912469]
[1735454968177,0.29518,3393.6,3393.5,6.25431469]
[1735454968677,0.73838,3393.6,3393.5,6.25431469]
[1735454968877,5.38409831,3393.6,3393.5,1.3296]
[1735454969177,5.38409831,3393.6,3393.5,1.62479]
[1735454970474,0.73838,3393.6,3393.5,1.62479]
[1735454973576,0.29518,3393.6,3393.5,1.62479]
[1735454974378,4.94111738,3393.6,3393.5,1.62479]
[1735454977475,4.94111738,3393.6,3393.5,1.3296]
[1735454978480,4.94111738,3393.6,3393.5,1.62479]
[1735454980676,4.94111738,3393.6,3393.5,1.3296]
[1735454980875,4.94111738,3393.6,3393.5,1.62479]
[1735454981082,4.94111738,3393.6,3393.5,1.3296]
[1735454981276,4.94111738,3393.6,3393.5,1.62479]
[1735454981676,0.29518,3393.6,3393.5,1.62479]
[1735454982884,0.29518,3393.6,3393.5,1.3296]
[1735454983284,0.29518,3393.6,3393.5,1.62479]
[1735455003801,4.94304977,3393.6,3393.5,1.62479]
[1735455004591,4.94304977,3393.6,3393.5,1.3296]
[1735455006202,0.29518,3393.6,3393.5,1.62479]
[1735455009797,5.8035304,3393.7,3393.5,1.3296]
[1735455009997,6.0987004,3393.8,3393.5,1.3296]
[1735455010299,6.0987004,3393.8,3393.7,0.29517]
[1735455011407,0.29517,3393.8,3393.7,0.29517]
[1735455013006,0.29518,3393.6,3393.5,6.25431469]
[1735455013704,0.29518,3393.6,3393.5,1.62479]
[1735455015308,0.29518,3393.6,3393.5,1.3296]
[1735455015704,0.29518,3393.6,3393.5,0.4515]
[1735455016510,6.0987104,3393.6,3393.5,0.4515]
[1735455020806,0.29518,3393.6,3393.5,0.4515]
[1735455022306,6.0987104,3393.6,3393.5,0.4515]
[1735455023507,0.29518,3393.6,3393.5,0.4515]
[1735455023709,0.29518,3393.6,3393.5,0.74669]
[1735455025517,0.29518,3393.6,3393.5,0.4515]
[1735455028722,0.29518,3393.6,3393.5,0.74669]
[1735455030113,6.0987104,3393.7,3393.6,0.29518]
[1735455030312,6.0987104,3393.7,3393.6,0.75168]
[1735455031517,6.0987104,3393.7,3393.6,0.4565]
[1735455033626,6.0987104,3393.7,3393.6,0.75168]
[1735455034927,0.29518,3393.7,3393.6,0.75168]
[1735455040824,6.0987004,3393.8,3393.7,0.29517]
[1735455041323,6.0987004,3393.8,3393.7,0.73677]
[1735455042121,0.29517,3393.8,3393.7,0.73677]
[1735455046634,5.8035304,3393.9,3393.8,0.29517]
[1735455047432,4.64638914,3393.9,3393.8,0.29517]
[1735455047630,3.94578914,3393.9,3393.8,3.50297]
[1735455048933,3.48364094,3394.2,3393.8,18.09365692]
[1735455049126,3.48364094,3394.2,3394.1,0.29514]
[1735455049633,3.48364094,3394.2,3394.1,1.19214]
[1735455050627,3.48364094,3394.3,3394.2,0.29513]
[1735455050833,3.48364094,3394.3,3394.2,1.33972613]
[1735455051235,3.48364094,3394.3,3394.2,4.54752613]
[1735455053435,3.77876094,3394.4,3394.2,4.25239613]
[1735455053731,3.48364094,3394.4,3394.3,0.29512]
[1735455055130,3.48364094,3394.5,3394.4,0.29511]
[1735455055339,3.48364094,3394.5,3394.4,1.33970613]
[1735455059844,3.77874094,3394.6,3394.4,1.33970613]
[1735455060142,3.77874094,3394.6,3394.5,0.4224]
[1735455060939,3.77874094,3394.6,3394.5,0.7175]
[1735455064143,0.2951,3394.6,3394.5,0.7175]
[1735455065246,3.77873094,3394.7,3394.6,0.2951]
[1735455065447,3.77873094,3394.7,3394.6,1.33969613]
[1735455067243,0.29509,3394.7,3394.6,1.33969613]
[1735455067443,3.77872094,3394.8,3394.7,0.29509]
[1735455068445,0.29508,3394.8,3394.7,0.29509]
[1735455071958,0.29508,3394.8,3394.6,1.04459613]
[1735455071959,0.29509,3394.7,3394.6,1.33968613]
[1735455074963,0.29509,3394.8,3394.7,0.29508]
[1735455084266,3.77873094,3394.8,3394.7,0.29508]
[1735455086774,3.48364094,3394.8,3394.7,0.29508]
[1735455087864,3.77872094,3394.8,3394.7,0.29508]
[1735455088067,3.48364094,3394.8,3394.7,0.29508]
[1735455088564,3.48364094,3394.8,3394.7,1.33967613]
[1735455090772,6.69144094,3395.2,3395.1,0.29505]
[1735455090973,6.69144094,3395.2,3395.1,1.33964613]
[1735455091878,6.69144094,3395.2,3395.1,1.80584613]
[1735455092279,3.2078,3395.2,3395.1,1.80584613]
[1735455095479,3.48364094,3395.3,3395.2,0.29504]
[1735455095974,4.63205445,3395.5,3395.4,0.29503]
[1735455096172,3.93155445,3395.5,3395.4,1.33962613]
[1735455096874,3.93155445,3395.5,3395.4,4.54742613]
[1735455097072,0.4422,3396.0,3395.4,4.25239613]
[1735455097270,0.4422,3396.0,3395.9,4.54737613]
[1735455097977,0.4422,3396.0,3395.9,3.2078]
[1735455098177,0.73717,3396.0,3395.9,3.2078]
[1735455100078,0.29498,3395.9,3395.8,0.29499]
[1735455100576,0.4422,3396.0,3395.8,0.29499]
[1735455100777,0.73718,3396.0,3395.8,0.29499]
[1735455100975,0.73718,3396.0,3395.9,0.29498]
[1735455102075,6.9657804,3396.5,3396.4,0.29494]
[1735455102076,5.8035304,3396.5,3396.4,0.29494]
[1735455102275,5.8035304,3396.5,3396.4,1.33953613]
[1735455103581,5.8035304,3396.5,3396.4,1.04459613]
[1735455103783,6.0984604,3396.5,3396.4,1.04459613]
[1735455103971,5.8035304,3396.5,3396.4,1.04459613]
[1735455104178,0.29495,3396.3,3396.1,4.54736613]
[1735455104478,1.14293,3396.6,3396.3,0.29494]
[1735455104882,0.29494,3396.5,3396.3,0.29494]
[1735455106681,1.14293,3396.6,3396.4,0.29494]
[1735455106884,0.29493,3396.5,3396.3,0.29494]
[1735455107081,1.14293,3396.6,3396.2,0.441]
[1735455107383,1.14293,3396.6,3396.4,0.29494]
[1735455108187,1.14293,3396.6,3396.5,0.8621]
[1735455108381,1.14293,3396.6,3396.5,0.4275]
[1735455108686,0.848,3396.6,3396.5,0.72243]
[1735455109987,1.14292,3396.6,3396.5,0.72243]
[1735455110686,0.848,3396.6,3396.5,0.72243]
[1735455111385,0.4255,3396.6,3396.5,0.72243]
[1735455111894,0.72042,3396.6,3396.5,0.4275]
[1735455112893,0.29495,3396.4,3396.3,0.29494]
[1735455116192,0.74343,3396.5,3396.4,0.29494]
[1735455116486,0.4485,3396.5,3396.4,0.29494]
[1735455117290,0.4255,3396.6,3396.1,0.8849]
[1735455117486,0.4255,3396.6,3396.5,0.29493]
[1735455118488,0.4255,3396.6,3396.5,0.75323]
[1735455119691,3.2078,3397.7,3396.6,0.73731]
[1735455119887,5.8035304,3397.9,3397.6,3.2078]
[1735455119888,0.8709,3397.8,3397.6,3.2078]
[1735455120094,0.8709,3397.8,3397.6,3.50263]
[1735455120289,0.8709,3397.8,3397.7,0.4583]
[1735455120686,0.8709,3397.8,3397.7,0.75313]
[1735455121387,0.29483,3397.7,3397.3,0.8646]
[1735455121582,0.4572,3397.7,3397.5,0.29484]
[1735455121787,0.75203,3397.7,3397.5,0.29484]
[1735455122388,0.29484,3397.6,3397.5,0.29484]
[1735455122584,0.4572,3397.7,3397.3,0.4296]
[1735455122788,0.4572,3397.7,3397.2,3.2078]
[1735455122789,0.29486,3397.3,3397.2,3.2078]
[1735455129002,0.29486,3397.3,3397.1,0.29488]
[1735455129199,0.4449,3397.2,3397.1,0.29488]
[1735455132402,0.8885,3397.2,3397.1,0.29488]
[1735455132897,1.18337,3397.2,3397.1,0.29488]
[1735455134002,0.29489,3397.1,3396.9,0.2949]
[1735455134201,0.29489,3397.0,3396.9,0.2949]
[1735455134402,0.29489,3397.0,3396.8,3.2078]
[1735455134704,0.2949,3396.9,3396.8,3.2078]
[1735455134899,0.7579,3396.9,3396.8,3.2078]
[1735455140005,3.06264905,3396.9,3396.8,3.2078]
[1735455140505,2.76774905,3396.9,3396.7,0.29491]
[1735455140708,0.7298,3396.8,3396.7,0.29491]
[1735455141007,0.29492,3396.6,3396.5,3.50273]
[1735455141804,0.29494,3396.4,3396.3,0.4534]
[1735455142006,0.29494,3396.4,3396.3,0.74835]
[1735455144007,0.73654,3396.4,3396.3,0.74835]
[1735455144906,3.0501669,3396.4,3396.3,0.74835]
[1735455145706,3.05219323,3396.4,3396.3,0.74835]
[1735455146909,3.05219323,3396.4,3396.3,0.4534]
[1735455147608,0.29496,3396.2,3396.1,0.29496]
[1735455147908,0.29495,3396.3,3396.2,0.29496]
[1735455149311,0.29495,3396.3,3396.1,0.4264]
[1735455149312,0.29496,3396.2,3396.1,0.4264]
[1735455149512,0.29497,3396.1,3396.0,3.2078]
[1735455151515,4.90450773,3396.1,3396.0,3.2078]
[1735455152320,4.90450773,3396.1,3396.0,3.6468]
[1735455152912,0.29497,3396.1,3396.0,3.6468]
[1735455154217,0.29497,3396.1,3396.0,0.439]
[1735455157719,2.60859823,3396.1,3396.0,0.439]
[1735455158718,2.60859823,3396.1,3396.0,0.73397]
[1735455160122,2.31362823,3396.1,3396.0,0.73397]
[1735455160318,2.60858823,3396.2,3396.0,0.439]
[1735455160616,2.60858823,3396.2,3396.1,0.29497]
[1735455161015,0.29497,3396.1,3396.0,0.73397]
[1735455161717,0.29497,3396.1,3396.0,0.439]
[1735455169534,0.71597,3396.1,3396.0,0.439]
[1735455170239,3.02959823,3396.1,3396.0,0.439]
[1735455171538,0.71597,3396.1,3396.0,0.439]
[1735455172737,4.18683387,3396.1,3396.0,0.439]
[1735455173732,0.71597,3396.1,3396.0,0.439]
[1735455174833,4.18683387,3396.1,3396.0,0.439]
[1735455175939,4.18683387,3396.1,3396.0,0.8611]
[1735455176334,3.76583387,3396.1,3396.0,0.8611]
[1735455178233,3.76583387,3396.1,3396.0,0.5131]
[1735455179640,3.76583387,3396.1,3396.0,0.80807]
[1735455179933,3.47086387,3396.1,3396.0,0.80807]
[1735455181239,0.29496,3396.2,3396.1,0.29497]
[1735455181538,2.61245637,3396.2,3396.1,1.33754453]
[1735455182441,2.31749637,3396.2,3396.1,0.29497]
[1735455183840,2.61245637,3396.2,3396.1,0.29497]
[1735455184431,2.31749637,3396.2,3396.1,0.29497]
[1735455187036,2.61245637,3396.2,3396.1,0.29497]
[1735455187241,2.31749637,3396.2,3396.1,0.29497]
[1735455188334,2.31749637,3396.2,3396.1,3.50277]
[1735455189432,2.31749637,3396.2,3396.1,8.50277]
[1735455190338,0.00202633,3396.4,3396.1,13.59266706]
[1735455190540,0.00202633,3396.4,3396.3,2.66638069]
[1735455191845,0.00202633,3396.4,3396.3,8.05124775]
[1735455192045,0.00202633,3396.4,3396.3,14.97732703]
[1735455192436,0.00202633,3396.4,3396.3,19.97732703]
[1735455192636,2.31749637,3396.8,3396.7,0.29491]
[1735455192843,2.31749637,3396.8,3396.7,5.87414069]
[1735455193339,2.31749637,3396.8,3396.7,3.50271]
[1735455193546,0.758,3396.9,3396.8,0.2949]
[1735455195446,0.4631,3396.9,3396.8,0.2949]
[1735455195952,0.4631,3396.9,3396.8,0.7503]
[1735455197743,3.06107637,3397.1,3396.8,0.4554]
[1735455197937,3.52297637,3397.1,3397.0,0.29489]
[1735455198649,3.22809637,3397.1,3397.0,0.29489]
[1735455198854,0.9106,3397.1,3397.0,0.29489]
[1735455201150,2.31749637,3397.3,3397.2,0.29487]
[1735455201453,2.31749637,3397.4,3397.2,2.37143069]
[1735455201652,2.76049637,3397.4,3397.2,2.37143069]
[1735455202151,3.18089637,3397.4,3397.3,0.29486]
[1735455202653,0.8634,3397.4,3397.3,0.29486]
[1735455207862,0.8634,3397.4,3397.3,0.75986]
[1735455208358,0.8634,3397.4,3397.3,0.29486]
[1735455210358,0.8634,3397.4,3397.3,1.33637013]
[1735455210560,0.443,3397.4,3397.3,1.33637013]
[1735455214263,0.74763,3397.7,3397.3,1.04151013]
[1735455214455,0.4435,3397.6,3397.5,0.29484]
[1735455215718,0.4435,3397.6,3397.5,1.33635013]
[1735455216465,0.4435,3397.6,3397.5,1.04151013]
[1735455216667,0.73834,3397.6,3397.5,1.33635013]
[1735455218469,0.4435,3397.6,3397.5,1.33635013]
[1735455220667,0.73834,3397.6,3397.5,1.33635013]
[1735455221272,0.73834,3397.6,3397.5,1.04151013]
[1735455221468,0.73834,3397.6,3397.5,1.33635013]
[1735455221872,0.29485,3397.5,3397.4,0.29485]
[1735455222069,0.4435,3397.6,3397.4,1.33636013]
[1735455222269,0.4435,3397.6,3397.5,0.29484]
[1735455222270,0.73834,3397.6,3397.5,0.29484]
[1735455222474,0.73834,3397.6,3397.4,1.33636013]
[1735455222973,0.29484,3397.5,3397.4,1.33636013]
[1735455223767,0.29484,3397.5,3397.4,1.04151013]
[1735455223967,0.29484,3397.5,3397.4,1.33636013]
[1735455224170,0.29484,3397.5,3397.4,1.04151013]
[1735455224671,0.4435,3397.6,3397.2,3.2078]
[1735455224974,0.4435,3397.6,3397.1,0.4454]
[1735455224975,0.29487,3397.2,3397.1,0.4454]
[1735455225675,0.4528,3397.4,3397.0,0.29488]
[1735455225876,0.76178,3397.1,3397.0,0.71519]
[1735455226275,0.2949,3396.9,3396.8,0.2949]
[1735455226476,0.74599,3397.0,3396.9,1.04151013]
[1735455226677,0.29491,3396.8,3396.7,3.50271]
[1735455226876,0.29491,3396.8,3396.7,4.54422013]
[1735455227978,2.76859637,3397.0,3396.7,4.24931013]
[1735455228281,3.06348637,3397.0,3396.9,1.04151013]
[1735455228878,2.76859637,3397.0,3396.9,1.33641013]
[1735455230280,0.4511,3397.0,3396.9,1.33641013]
[1735455231577,0.4511,3397.0,3396.9,0.2949]